bitfinex/quotes_SOLUSD_20260105
["timestamp","ask_amount","ask_price","bid_price","bid_amount"]
[1767630788785,5.9471037,135.34,135.31,0.67785939]
[1767630789197,7.78638808,135.35,135.31,0.67785939]
[1767630789401,5.9471037,135.34,135.31,8.06829002]
[1767630789601,6.610404,135.32,135.27,0.67785939]
[1767630789801,13.46,135.36,135.25,8.07123706]
[1767630789802,5.9471037,135.29,135.25,8.07123706]
[1767630790107,5.88710371,135.29,135.26,0.67785939]
[1767630790810,5.82710372,135.29,135.27,0.67785939]
[1767630791793,5.82710372,135.29,135.25,7.39337767]
[1767630791794,5.9471037,135.29,135.25,8.07157112]
[1767630792016,5.9471037,135.28,135.26,0.67785939]
[1767630792921,5.9471037,135.28,135.22,13.86542837]
[1767630792922,0.40326907,135.26,135.21,0.67785939]
[1767630793098,5.9471037,135.23,135.21,0.67785939]
[1767630793408,5.82710372,135.23,135.21,0.67785939]
[1767630793913,5.9471037,135.23,135.21,8.07368397]
[1767630794112,0.34326908,135.26,135.22,0.67785939]
[1767630794113,5.9471037,135.24,135.22,0.67785939]
[1767630795113,5.88710371,135.24,135.22,0.67785939]
[1767630796196,0.66866039,135.29,135.23,0.67785939]
[1767630796408,5.9471037,135.26,135.23,0.67785939]
[1767630798122,5.9471037,135.26,135.23,8.0726511]
[1767630798300,7.73065639,135.28,135.23,8.0726511]
[1767630798505,5.9471037,135.26,135.23,8.0726511]
[1767630799816,5.9471037,135.26,135.23,0.67785939]
[1767630800525,2.42426351,135.26,135.23,0.67785939]
[1767630800904,7.39278078,135.27,135.23,0.67785939]
[1767630801115,7.73083244,135.28,135.24,0.67785939]
[1767630801439,2.42426351,135.26,135.24,0.67785939]
[1767630801722,2.42426351,135.25,135.23,0.67785939]
[1767630802134,0.66866039,135.36,135.29,6.19314939]
[1767630802298,0.2,135.4,135.31,0.67785939]
[1767630802299,3.0929239,135.38,135.31,0.67785939]
[1767630802620,0.66866039,135.38,135.33,0.67785939]
[1767630803139,0.66866039,135.38,135.32,11.63713892]
[1767630803140,0.66866039,135.38,135.34,21.5463452]
[1767630803704,0.66866039,135.38,135.34,14.15785939]
[1767630804007,8.05485791,135.39,135.34,21.54661756]
[1767630804230,10.47912142,135.39,135.34,21.54661756]
[1767630804609,6.60965112,135.38,135.34,21.54661756]
[1767630805222,6.60965112,135.36,135.32,13.48]
[1767630805713,5.94099073,135.35,135.32,13.48]
[1767630806216,5.94099073,135.35,135.32,20.86978807]
[1767630806525,5.94099073,135.35,135.32,13.48]
[1767630807522,5.94099073,135.35,135.32,21.54758105]
[1767630807730,6.60965112,135.36,135.32,21.54758105]
[1767630808206,0.66866039,135.36,135.32,14.15785939]
[1767630808406,6.60965112,135.36,135.32,14.15785939]
[1767630808730,13.99740896,135.36,135.32,14.15785939]
[1767630809105,5.94099073,135.35,135.32,14.15785939]
[1767630809532,5.94099073,135.35,135.32,13.48]
[1767630809725,6.60965112,135.35,135.3,8.06881507]
[1767630809913,6.60965112,135.35,135.28,18.47943997]
[1767630809914,6.60965112,135.31,135.27,20.40823893]
[1767630810110,7.38775784,135.36,135.28,0.67785939]
[1767630810111,5.94099073,135.3,135.28,0.67785939]
[1767630810306,5.94099073,135.3,135.27,21.08609832]
[1767630810507,9.66723234,135.3,135.27,0.67785939]
[1767630810926,9.66723234,135.3,135.27,8.07038661]
[1767630811130,9.66723234,135.28,135.25,8.06603949]
[1767630811425,9.60723235,135.28,135.25,21.52603949]
[1767630812330,9.66723234,135.28,135.25,21.52603949]
[1767630812707,9.66723234,135.27,135.25,20.85360085]
[1767630812916,0.70557931,135.29,135.25,20.85360085]
[1767630812917,9.66723234,135.28,135.25,20.85360085]
[1767630813133,9.66723234,135.28,135.25,7.39360085]
[1767630813827,10.37281165,135.28,135.24,21.54652663]
[1767630814033,10.37281165,135.27,135.24,13.48]
[1767630814234,9.66723234,135.26,135.24,13.48]
[1767630814410,10.37281165,135.27,135.24,13.48]
[1767630815323,0.70557931,135.3,135.25,0.67243864]
[1767630815636,9.66723234,135.29,135.25,0.67243864]
[1767630816021,18.72295002,135.29,135.25,0.67243864]
[1767630817813,18.72295002,135.29,135.25,8.0660138]
[1767630818022,10.37281165,135.31,135.26,0.67243864]
[1767630818426,18.72295002,135.31,135.27,8.0650608]
[1767630819226,0.70557931,135.33,135.28,0.67243864]
[1767630819437,10.37281165,135.32,135.28,0.67243864]
[1767630819622,18.72295002,135.32,135.28,0.67243864]
[1767630820251,8.35013837,135.32,135.28,0.67243864]
[1767630820454,9.05571768,135.32,135.28,0.67243864]
[1767630820749,0.70557931,135.31,135.27,13.48]
[1767630821113,0.70557931,135.31,135.27,14.15243864]
[1767630821843,0.70557931,135.31,135.27,21.54471736]
[1767630822145,8.35013837,135.32,135.29,0.67243864]
[1767630822342,0.70557931,135.35,135.29,0.67243864]
[1767630822539,0.70557931,135.34,135.29,0.67243864]
[1767630823336,10.37281165,135.34,135.29,0.67243864]
[1767630823942,0.70557931,135.32,135.28,8.06436367]
[1767630824237,18.01737071,135.33,135.27,7.39247971]
[1767630824238,10.37281165,135.31,135.27,7.39247971]
[1767630824434,10.37281165,135.3,135.26,21.54543623]
[1767630825750,10.37281165,135.29,135.26,13.48]
[1767630828322,0.70557931,135.29,135.26,13.48]
[1767630828922,10.37281165,135.29,135.26,13.48]
[1767630829423,18.01737071,135.3,135.26,21.54552423]
[1767630829825,18.72295002,135.3,135.26,14.15243864]
[1767630830027,10.37281165,135.29,135.26,13.48]
[1767630830529,15.74134318,135.3,135.26,13.48]
[1767630830530,15.74134318,135.3,135.26,14.15243864]
[1767630830732,0.70557931,135.27,135.23,7.39446778]
[1767630830922,10.37281165,135.27,135.23,7.39446778]
[1767630831547,9.66723234,135.25,135.22,20.87513074]
[1767630832037,10.37281165,135.25,135.22,7.39513074]
[1767630832233,10.37281165,135.25,135.21,7.39590266]
[1767630832860,10.37281165,135.24,135.21,7.39590266]
[1767630833181,10.31281166,135.24,135.2,21.46813393]
[1767630833331,10.31281166,135.24,135.2,7.98813393]
[1767630834635,0.71371799,135.23,135.2,7.39621538]
[1767630836722,0.71371799,135.23,135.19,21.468716]
[1767630836929,0.71371799,135.2,135.17,7.39775923]
[1767630837139,0.653718,135.2,135.17,7.39775923]
[1767630837342,9.66723234,135.22,135.18,7.39748909]
[1767630838453,9.66723234,135.22,135.15,7.39918608]
[1767630838454,9.66723234,135.2,135.15,7.39918608]
[1767630839124,10.38095033,135.2,135.15,7.39918608]
[1767630840032,0.71371799,135.18,135.15,7.39918608]
[1767630840445,9.66723234,135.19,135.15,7.39918608]
[1767630840848,10.33598227,135.19,135.15,7.39918608]
[1767630841455,10.33598227,135.19,135.15,8.05110462]
[1767630842428,0.66874993,135.19,135.15,7.39918608]
[1767630843455,0.66874993,135.18,135.15,7.39918608]
[1767630844241,0.66874993,135.19,135.15,7.39918608]
[1767630844543,0.66874993,135.17,135.14,7.39952849]
[1767630844748,0.66874993,135.16,135.12,0.65191854]
[1767630845144,0.66874993,135.16,135.13,7.3998878]
[1767630845346,13.48,135.19,135.15,0.65191854]
[1767630845347,14.14874993,135.19,135.15,0.65191854]
[1767630845540,0.66874993,135.18,135.14,8.05139276]
[1767630846940,0.66874993,135.17,135.14,7.39947422]
[1767630847147,0.66874993,135.17,135.12,8.05266078]
[1767630847448,10.33598227,135.16,135.12,8.05266078]
[1767630848237,0.66874993,135.16,135.13,7.40023908]
[1767630848438,0.60874994,135.16,135.12,7.40057811]
[1767630848740,3.79350065,135.16,135.12,7.40057811]
[1767630849063,13.48,135.19,135.13,0.71191853]
[1767630849268,3.79350065,135.18,135.13,0.71191853]
[1767630849555,13.48,135.19,135.13,0.71191853]
[1767630849750,17.27350065,135.19,135.13,0.71191853]
[1767630850557,0.66874993,135.2,135.13,0.71191853]
[1767630850945,0.66874993,135.2,135.12,39.38265034]
[1767630850946,0.66874993,135.2,135.15,0.71191853]
[1767630851560,4.46225058,135.2,135.15,0.71191853]
[1767630851845,0.66874993,135.18,135.14,8.11165213]
[1767630853359,10.35167675,135.18,135.14,8.11165213]
[1767630854447,0.66874993,135.18,135.14,8.11165213]
[1767630854648,0.60874994,135.18,135.14,8.11165213]
[1767630854848,13.48,135.21,135.15,0.71518403]
[1767630855385,13.48,135.21,135.16,8.11382268]
[1767630855386,23.16292682,135.21,135.16,8.11382268]
[1767630855542,13.48,135.21,135.17,0.71518403]
[1767630856173,23.16292682,135.21,135.17,0.71518403]
[1767630856363,23.16292682,135.21,135.16,7.39863865]
[1767630856563,9.68292682,135.19,135.15,7.39905216]
[1767630856865,10.35167675,135.19,135.15,8.11423619]
[1767630857255,0.66874993,135.19,135.15,8.11423619]
[1767630857453,13.48,135.21,135.16,0.71518403]
[1767630857454,14.14874993,135.21,135.16,0.71518403]
[1767630857655,23.83167675,135.21,135.16,0.71518403]
[1767630858268,0.66874993,135.19,135.15,7.39905216]
[1767630858651,0.66874993,135.19,135.15,8.11423619]
[1767630860973,14.14874993,135.21,135.16,0.71518403]
[1767630861151,23.83167675,135.21,135.16,0.71518403]
[1767630861354,13.48,135.21,135.16,0.71518403]
[1767630861560,10.35167675,135.22,135.17,0.71518403]
[1767630861871,0.66874993,135.21,135.17,0.71518403]
[1767630862270,0.66874993,135.23,135.17,0.71518403]
[1767630862649,0.66874993,135.24,135.17,0.71518403]
[1767630862854,0.66874993,135.24,135.19,0.71518403]
[1767630863654,0.66874993,135.26,135.2,0.71518403]
[1767630863856,10.35167675,135.26,135.2,0.71518403]
[1767630864057,0.66874993,135.25,135.2,0.71518403]
[1767630864880,0.66874993,135.25,135.21,7.39590266]
[1767630866990,0.66874993,135.25,135.21,0.71518403]
[1767630867279,0.66874993,135.26,135.21,0.71518403]
[1767630869460,0.66874993,135.25,135.21,8.11079694]
[1767630870883,0.66874993,135.25,135.21,26.60055361]
[1767630872086,14.15753327,135.28,135.22,0.70193056]
[1767630872294,0.67753327,135.27,135.22,0.70193056]
[1767630872879,0.67753327,135.27,135.23,0.70193056]
[1767630874088,0.67753327,135.27,135.24,7.39426205]
[1767630874274,3.10100425,135.27,135.22,0.70193056]
[1767630874463,0.67753327,135.26,135.22,0.70193056]
[1767630874906,0.67753327,135.26,135.22,8.09704944]
[1767630875863,0.67753327,135.26,135.23,7.39469974]
[1767630876487,0.67753327,135.24,135.21,24.63954788]
[1767630876683,3.10100425,135.24,135.21,13.48]
[1767630877474,0.67753327,135.23,135.2,7.39595415]
[1767630877788,0.61753328,135.23,135.2,7.39595415]
[1767630880067,0.67753327,135.25,135.21,0.70193056]
[1767630880375,0.67753327,135.24,135.2,26.58900897]
[1767630880694,3.10100425,135.24,135.2,26.58900897]
[1767630881382,2.42347098,135.23,135.2,8.09788471]
[1767630881983,2.42347098,135.24,135.21,0.70193056]
[1767630882994,2.42347098,135.24,135.21,8.0975744]
[1767630883296,0.67753327,135.25,135.21,8.0975744]
[1767630883594,2.42347098,135.25,135.22,0.70193056]
[1767630884783,0.67753327,135.26,135.21,39.36540051]
[1767630884993,0.67753327,135.24,135.21,39.36540051]
[1767630885570,31.95800405,135.3,135.22,0.70193056]
[1767630885571,2.42347098,135.28,135.22,0.70193056]
[1767630885983,2.42347098,135.27,135.22,0.70193056]
[1767630886593,2.42347098,135.27,135.23,7.39480884]
[1767630886798,2.42347098,135.27,135.24,0.70193056]
[1767630887004,2.42347098,135.28,135.24,0.70193056]
[1767630887499,3.10100425,135.28,135.24,0.70193056]
[1767630888594,0.67753327,135.28,135.24,0.70193056]
[1767630889902,0.67753327,135.28,135.24,8.09579988]
[1767630890692,0.67753327,135.27,135.24,7.39386932]
[1767630891079,0.67753327,135.27,135.24,8.09579988]
[1767630892393,3.10100425,135.27,135.23,8.09663052]
[1767630892596,3.10100425,135.26,135.22,8.09685986]
[1767630892784,2.42347098,135.25,135.22,0.70193056]
[1767630892984,3.07670369,135.26,135.23,0.67738462]
[1767630893805,0.65323271,135.26,135.23,0.67738462]
[1767630893991,3.07670369,135.26,135.23,0.67738462]
[1767630894191,0.65323271,135.24,135.21,7.39590266]
[1767630894382,7.39323619,135.26,135.2,7.39617778]
[1767630894383,2.42347098,135.23,135.2,7.39617778]
[1767630894583,7.39323619,135.26,135.19,8.07427068]
[1767630894900,2.42347098,135.22,135.19,0.67738462]
[1767630895481,2.42347098,135.21,135.19,0.67738462]
[1767630895793,1e-08,135.21,135.19,8.07435851]
[1767630896598,2.42347098,135.22,135.19,8.07435851]
[1767630896903,0.65323271,135.23,135.19,8.07435851]
[1767630897096,3.07670369,135.23,135.19,8.07435851]
[1767630897300,2.42347098,135.21,135.19,8.07435851]
[1767630897700,2.42347098,135.22,135.19,8.07435851]
[1767630897894,0.65323271,135.24,135.2,0.67738462]
[1767630898079,3.07670369,135.24,135.2,0.67738462]
[1767630900008,2.42347098,135.23,135.2,8.07379349]
[1767630900301,3.07670369,135.23,135.2,0.67738462]
[1767630900497,2.42347098,135.21,135.19,0.67738462]
[1767630900898,2.42347098,135.21,135.19,8.07419347]
[1767630901079,0.65323271,135.22,135.19,8.07419347]
[1767630901080,2.42347098,135.22,135.19,8.07419347]
[1767630902402,3.12335932,135.24,135.2,0.67843279]
[1767630904001,3.12335932,135.23,135.19,8.07532507]
[1767630904504,0.69988834,135.2,135.17,0.67843279]
[1767630904702,0.69988834,135.2,135.16,11.08337656]
[1767630904703,2.36347094,135.19,135.16,0.67843279]
[1767630904905,2.3034709,135.19,135.16,8.07698677]
[1767630905409,2.42347098,135.19,135.16,8.07698677]
[1767630905804,0.69988834,135.2,135.16,8.07698677]
[1767630906010,0.69988834,135.24,135.18,0.67843279]
[1767630906188,0.69988834,135.23,135.18,0.67843279]
[1767630906886,2.42347098,135.22,135.19,8.0754296]
[1767630907089,3.12335932,135.22,135.19,0.67843279]
[1767630908709,7.39434107,135.24,135.2,0.67843279]
[1767630908710,0.69988834,135.24,135.2,0.67843279]
[1767630908905,0.69988834,135.24,135.19,7.39671644]
[1767630908906,3.12335932,135.23,135.19,7.39671644]
[1767630909219,3.12335932,135.22,135.18,8.07564876]
[1767630909591,0.69988834,135.22,135.18,8.07564876]
[1767630910014,3.12335932,135.22,135.18,8.07564876]
[1767630910210,2.42347098,135.19,135.15,8.07720246]
[1767630910415,1.43394357,135.18,135.16,7.39860715]
[1767630910626,2.42347098,135.18,135.15,7.39918608]
[1767630910796,2.42347098,135.19,135.16,0.67843279]
[1767630911193,2.42347098,135.17,135.14,21.55790207]
[1767630911398,0.69988834,135.17,135.14,14.15843279]
[1767630911601,3.12335932,135.17,135.14,14.15843279]
[1767630911823,7.39708114,135.19,135.11,19.07476589]
[1767630911824,3.12335932,135.15,135.11,19.07476589]
[1767630911993,2.42347098,135.14,135.11,8.17955134]
[1767630912620,0.69988834,135.15,135.12,7.40072178]
[1767630912927,6.66236844,135.15,135.11,8.17955507]
[1767630914728,6.66236844,135.14,135.11,0.1]
[1767630914908,5.9624801,135.13,135.11,0.1]
[1767630915738,5.9624801,135.13,135.11,7.50128359]
[1767630916307,6.66236844,135.14,135.11,7.50128359]
[1767630916514,6.66236844,135.14,135.11,0.1]
[1767630916812,6.66236844,135.14,135.11,7.50127179]
[1767630917400,6.66236844,135.14,135.11,0.1]
[1767630920015,0.69988834,135.16,135.11,0.77843279]
[1767630920205,6.66236844,135.16,135.11,0.77843279]
[1767630920405,5.9624801,135.15,135.11,0.77843279]
[1767630920609,6.66236844,135.15,135.11,0.77843279]
[1767630921009,6.66236844,135.15,135.11,8.17958426]
[1767630924106,0.69988834,135.14,135.11,8.17958426]
[1767630924425,5.9624801,135.14,135.11,0.1]
[1767630925907,5.9624801,135.14,135.11,0.77843279]
[1767630926101,5.9624801,135.14,135.11,0.1]
[1767630926308,6.59128467,135.14,135.11,0.77843279]
[1767630926520,0.69988834,135.16,135.11,0.77843279]
[1767630926725,6.6264334,135.15,135.11,0.77843279]
[1767630927401,7.39846338,135.17,135.11,0.77843279]
[1767630927402,0.66430905,135.13,135.11,0.1]
[1767630927710,5.9624801,135.14,135.11,0.1]
[1767630927909,5.9624801,135.14,135.11,0.77843279]
[1767630928112,6.6264334,135.15,135.11,0.77843279]
[1767630928305,6.66200909,135.14,135.11,0.1]
[1767630928926,6.66200909,135.14,135.11,0.77843279]
[1767630929119,5.9624801,135.14,135.11,0.77843279]
[1767630929432,51.67370378,135.18,135.11,0.77843279]
[1767630929433,5.9624801,135.19,135.11,0.77843279]
[1767630929604,6.6264334,135.19,135.11,0.77843279]
[1767630930019,0.6639533,135.19,135.13,0.67843279]
[1767630930221,0.6639533,135.19,135.15,0.67843279]
[1767630931527,6.64593216,135.21,135.15,0.67843279]
[1767630931721,0.68345206,135.21,135.15,0.67843279]
[1767630931925,0.68345206,135.21,135.17,0.67178286]
[1767630933012,4.47389403,135.21,135.17,8.06977791]
[1767630933712,0.68345206,135.21,135.17,8.06977791]
[1767630933941,0.68345206,135.22,135.18,0.67178286]
[1767630934109,4.47389403,135.23,135.18,0.67178286]
[1767630934439,0.68345206,135.23,135.18,0.67178286]
[1767630934815,4.47389403,135.24,135.18,0.67178286]
[1767630935115,4.47389403,135.24,135.19,8.06877967]
[1767630935309,0.68022521,135.23,135.19,7.39699681]
[1767630937021,0.68022521,135.23,135.18,7.39754401]
[1767630937221,0.68022521,135.23,135.18,25.89140404]
[1767630937412,0.68341979,135.22,135.18,7.39754401]
[1767630937828,0.68341979,135.22,135.18,25.89140404]
[1767630938024,0.68022521,135.23,135.19,0.67178286]
[1767630939441,0.68022521,135.23,135.19,8.06824778]
[1767630941416,0.68025716,135.21,135.18,8.06917578]
[1767630941743,4.47389403,135.22,135.18,8.06917578]
[1767630942042,0.68345206,135.22,135.18,8.06917578]
[1767630942836,0.68345206,135.23,135.19,0.67178286]
[1767630943035,3.79044197,135.24,135.19,0.67178286]
[1767630943436,4.47066718,135.24,135.19,0.67178286]
[1767630944828,4.47066718,135.24,135.2,0.67178286]
[1767630945141,0.68341979,135.23,135.2,0.67178286]
[1767630945540,0.68025716,135.22,135.18,8.06921945]
[1767630945769,0.68025716,135.22,135.18,0.67178286]
[1767630945922,0.68025716,135.22,135.18,8.06912366]
[1767630946537,0.68025716,135.22,135.19,7.39698706]
[1767630946723,13.48,135.26,135.19,8.06876992]
[1767630946924,3.79044197,135.25,135.19,26.56126196]
[1767630947132,24.66365954,135.26,135.2,0.67178286]
[1767630947824,3.79044197,135.25,135.2,0.67178286]
[1767630948136,3.79044197,135.25,135.19,25.8894791]
[1767630948137,7.390983,135.3,135.22,0.67178286]
[1767630948449,7.390983,135.3,135.19,26.62917878]
[1767630948450,3.79044197,135.23,135.19,0.67178286]
[1767630948620,3.79044197,135.28,135.19,0.67178286]
[1767630948621,3.79044197,135.22,135.19,0.67178286]
[1767630949247,3.79044197,135.22,135.19,8.06865739]
[1767630950461,3.79044197,135.23,135.19,8.06865739]
[1767630951362,3.79044197,135.25,135.2,0.67178286]
[1767630951652,4.38073305,135.26,135.2,0.67178286]
[1767630952654,3.79044197,135.25,135.2,0.67178286]
[1767630952928,3.79044197,135.25,135.21,0.69592602]
[1767630953229,7.98375612,135.26,135.21,0.69592602]
[1767630953437,3.79044197,135.25,135.21,0.69592602]
[1767630954631,3.79044197,135.27,135.21,0.69592602]
[1767630954827,31.95811406,135.3,135.24,0.69592602]
[1767630954828,3.79044197,135.3,135.24,0.69592602]
[1767630955026,0.2,135.31,135.26,0.69592602]
[1767630956852,10.24367511,135.3,135.26,0.69592602]
[1767630957060,17.63473589,135.3,135.24,8.08996156]
[1767630957230,9.77174288,135.29,135.24,21.56996156]
[1767630957436,9.6631121,135.28,135.24,21.56996156]
[1767630957736,9.6631121,135.26,135.22,14.17592602]
[1767630957930,9.77641501,135.27,135.23,8.09038217]
[1767630958151,0.57121828,135.26,135.23,7.39445615]
[1767630958330,0.57121828,135.26,135.22,20.87516234]
[1767630958834,9.6631121,135.27,135.23,0.69592602]
[1767630960154,9.6631121,135.27,135.23,8.09048228]
[1767630960362,7.98255787,135.28,135.23,8.09048228]
[1767630960556,9.6631121,135.27,135.23,8.09048228]
[1767630960865,9.6631121,135.27,135.23,8.09062562]
[1767630961368,9.7621121,135.27,135.23,0.69592602]
[1767630961572,9.6631121,135.26,135.23,0.69592602]
[1767630961857,9.6631121,135.25,135.21,21.59295281]
[1767630962057,9.6631121,135.3,135.21,21.59295281]
[1767630962058,18.77541646,135.31,135.22,0.71739838]
[1767630962248,9.9621121,135.31,135.24,0.71739838]
[1767630962554,0.2,135.31,135.25,0.71739838]
[1767630963329,1e-08,135.31,135.29,0.71739838]
[1767630963539,0.2,135.34,135.31,0.71739838]
[1767630963740,0.2,135.37,135.32,0.71739838]
[1767630963944,0.2,135.37,135.33,0.71739838]
[1767630964272,0.2,135.4,135.36,0.71739838]
[1767630964438,0.57584369,135.41,135.36,0.71739838]
[1767630964638,0.2,135.43,135.37,0.71739838]
[1767630965767,2.1e-07,135.42,135.4,0.71739838]
[1767630966141,2.1e-07,135.42,135.4,8.10243901]
[1767630966538,0.1,135.47,135.41,0.71739838]
[1767630966745,0.1,135.47,135.43,0.71739838]
[1767630967254,0.1,135.47,135.4,7.38504063]
[1767630967255,9.6631121,135.44,135.4,7.38504063]
[1767630967451,9.6631121,135.44,135.39,0.71739838]
[1767630967452,9.6631121,135.43,135.39,8.1033894]
[1767630967654,0.58448361,135.44,135.39,8.1033894]
[1767630967655,9.6631121,135.42,135.39,8.1033894]
[1767630967840,9.6631121,135.42,135.38,8.10392174]
[1767630968043,9.6631121,135.43,135.39,8.10331318]
[1767630968771,0.1,135.48,135.45,0.71739838]
[1767630968939,0.1,135.48,135.43,13.48]
[1767630969140,0.1,135.48,135.44,0.71739838]
[1767630970345,0.1,135.48,135.45,0.71739838]
[1767630971645,0.1,135.48,135.42,8.35013837]
[1767630971646,0.1,135.48,135.42,0.71739838]
[1767630971851,0.1,135.48,135.44,7.38327179]
[1767630971852,9.7631121,135.48,135.44,7.38327179]
[1767630972051,0.21636919,135.46,135.41,13.46]
[1767630972253,0.21636919,135.46,135.41,20.84495087]
[1767630972451,0.21636919,135.46,135.41,21.56234925]
[1767630972665,9.87488162,135.47,135.41,21.56234925]
[1767630972864,9.6631121,135.46,135.41,8.10234925]
[1767630973160,9.6631121,135.43,135.39,0.71739838]
[1767630973367,10.33029477,135.44,135.39,0.71739838]
[1767630973749,0.66718267,135.44,135.39,0.71739838]
[1767630973944,9.6631121,135.41,135.38,0.71739838]
[1767630974247,9.6631121,135.43,135.39,8.10329128]
[1767630974758,9.6631121,135.42,135.39,0.71739838]
[1767630974950,9.6631121,135.42,135.37,14.13674241]
[1767630975465,0.21176952,135.45,135.39,8.10343021]
[1767630975668,9.6631121,135.43,135.39,0.71739838]
[1767630975855,9.87948129,135.43,135.37,14.13674241]
[1767630976166,9.88398942,135.41,135.37,13.41934403]
[1767630977247,9.6631121,135.42,135.38,0.71739838]
[1767630978075,9.6631121,135.41,135.38,0.71739838]
[1767630978769,9.6631121,135.42,135.38,8.10383487]
[1767630979064,9.6631121,135.42,135.38,0.71739838]
[1767630979263,9.6631121,135.41,135.38,0.71739838]
[1767630979867,9.6631121,135.41,135.38,8.10396123]
[1767630980054,9.6631121,135.41,135.38,0.71739838]
[1767630980579,0.67638247,135.43,135.38,8.10397308]
[1767630980752,10.33949457,135.43,135.39,0.71739838]
[1767630981449,9.6631121,135.43,135.39,0.71739838]
[1767630982152,9.6631121,135.43,135.37,13.41934403]
[1767630982153,9.6631121,135.4,135.37,13.41934403]
[1767630982862,0.66718267,135.41,135.37,13.41934403]
[1767630983063,9.6631121,135.4,135.37,13.41934403]
[1767630983266,9.6631121,135.38,135.37,13.41934403]
[1767630983472,0.22087732,135.4,135.37,13.41934403]
[1767630983673,9.6631121,135.39,135.37,13.41934403]
[1767630984574,9.6631121,135.38,135.3,8.10800841]
[1767630984774,9.6631121,135.34,135.3,8.10800841]
[1767630985073,9.6631121,135.33,135.29,7.39130444]
[1767630985277,9.6631121,135.33,135.29,8.10870282]
[1767630985580,9.6631121,135.34,135.3,8.10813682]
[1767630985887,9.6631121,135.35,135.31,0.71739838]
[1767630986049,20.84716111,135.37,135.29,8.10891286]
[1767630986050,9.6631121,135.33,135.29,8.10891286]
[1767630987185,9.6631121,135.31,135.27,8.10982385]
[1767630987356,9.60311211,135.31,135.27,8.10982385]
[1767630987677,9.6631121,135.33,135.29,7.39151961]
[1767630988284,9.6631121,135.35,135.3,0.71739838]
[1767630989080,9.6631121,135.35,135.31,8.10783515]
[1767630989394,9.6631121,135.35,135.32,0.71739838]
[1767630990382,7.38738091,135.37,135.32,0.71739838]
[1767630990580,9.6631121,135.36,135.32,0.71739838]
[1767630993386,9.6631121,135.35,135.32,0.71739838]
[1767630994182,9.6631121,135.37,135.33,0.66944408]
[1767630994587,5.94324082,135.36,135.33,0.66944408]
[1767630995395,5.94324082,135.35,135.31,0.66944408]
[1767630995890,5.94324082,135.34,135.31,0.66944408]
[1767630996678,5.94324082,135.34,135.3,7.39079137]
[1767630996886,5.94324082,135.34,135.3,0.66944408]
[1767630998271,5.94324082,135.34,135.29,7.39119733]
[1767630998272,5.94324082,135.31,135.28,7.39193809]
[1767630998466,5.94324082,135.32,135.29,0.66944408]
[1767630998693,5.89310601,135.32,135.28,7.39193809]
[1767630999497,5.89310601,135.32,135.27,7.39262216]
[1767630999871,5.94324082,135.31,135.26,21.52247104]
[1767631000071,5.94324082,135.3,135.26,21.52247104]
[1767631000274,5.94324082,135.3,135.26,0.66944408]
[1767631000475,5.94324082,135.29,135.26,0.66944408]
[1767631000675,5.94324082,135.3,135.26,0.66944408]
[1767631001790,13.33426084,135.3,135.26,0.66944408]
[1767631002592,5.94324082,135.29,135.25,0.2]
[1767631002778,5.94324082,135.28,135.25,0.2]
[1767631002984,5.94324082,135.27,135.25,0.2]
[1767631003386,5.94324082,135.26,135.25,0.2]
[1767631003778,5.94324082,135.26,135.22,12.44908192]
[1767631003985,5.94324082,135.25,135.22,12.44908192]
[1767631004394,5.94324082,135.24,135.22,12.44908192]
[1767631004597,5.94324082,135.23,135.18,0.86944408]
[1767631004894,5.94324082,135.23,135.19,0.66944408]
[1767631005680,5.94324082,135.24,135.2,0.66944408]
[1767631005885,13.46,135.25,135.2,0.66944408]
[1767631007090,26.79700319,135.25,135.2,0.66944408]
[1767631007401,5.94324082,135.23,135.18,0.86944408]
[1767631007580,5.94324082,135.22,135.18,0.86944408]
[1767631007980,13.33863485,135.22,135.18,0.86944408]
[1767631008280,5.94324082,135.22,135.18,0.86944408]
[1767631008872,7.39502835,135.23,135.18,0.2]
[1767631009076,5.94324082,135.23,135.18,8.26681849]
[1767631009480,7.39438161,135.24,135.19,0.66944408]
[1767631009712,5.94324082,135.23,135.19,0.66944408]
[1767631010805,5.94324082,135.23,135.18,7.59737441]
[1767631010806,5.94324082,135.22,135.18,0.86944408]
[1767631010994,5.94324082,135.21,135.18,0.2]
[1767631011302,25.88195911,135.23,135.18,0.2]
[1767631011303,5.94324082,135.2,135.18,0.2]
[1767631011686,5.94324082,135.2,135.13,13.34944408]
[1767631011883,6.04224082,135.2,135.15,7.39884061]
[1767631012084,6.04224082,135.2,135.14,7.3997336]
[1767631012685,5.94324082,135.2,135.14,25.89906762]
[1767631012890,5.94324082,135.21,135.14,25.89906762]
[1767631013090,21.54518462,135.22,135.14,25.89906762]
[1767631013347,27.48842544,135.22,135.14,25.89906762]
[1767631013912,27.48842544,135.22,135.15,0.71329015]
[1767631014082,27.48842544,135.22,135.16,7.39863865]
[1767631014403,27.48842544,135.22,135.17,0.71329015]
[1767631015699,27.48842544,135.22,135.17,8.11132007]